Cogmind - Beta 15 @@@ ROGUE MODE // 2025.07.27 @ 15:17:42 Player: shapeshifter Result: Destroyed by G-47 Trooper with Particle Gun Performance ------------- Evolutions (2) 1000 Regions Visited (6) 1200 Robots Destroyed (33) 165 Value Destroyed (974) 974 Prototype IDs (24) 480 Alien Tech Used (0) 0 Bonus (300) 300 TOTAL SCORE: 4119 Bonus ------- Aligned with FarCom 300 Cogmind --------- Core Integrity 0/550 Matter 240/300 Energy 40/100 System Corruption 10% Temperature Warm (133) Movement Core (750) Ox14 Location -8/Storage Parts ------- > --- POWER (1) -------- (None) > --- PROPULSION (2) --- (None) > --- UTILITY (6) ------ High-capacity Storage Unit > --- WEAPON (2) ------- Precision Beam Rifle Precision Beam Rifle > --- INVENTORY (20) --- Precision Beam Rifle XL Autogun Array Peak State ------------ > --- POWER ------------ Ion Engine > --- PROPULSION ------- Compact Wheel Compact Wheel > --- UTILITY ---------- High-capacity Storage Unit Seismic Detector Salvage Targeting Computer ECM Suite Weapon Shielding Improved Light Armor Plating > --- WEAPON ----------- Ion Cannon Light Cannon > --- INVENTORY -------- Light Treads Light Treads Humpback Humpback XL Autogun Array Grenade Launcher Flail [Rating: 20] Favorites ----------- Power Ion Engine Engine Ion Engine Propulsion Compact Wheel Treads Light Treads Wheel Compact Wheel Utility High-capacity Storage Unit Device Seismic Detector Storage High-capacity Storage Unit Processor Salvage Targeting Computer Protection Weapon Shielding Weapon Light Assault Rifle Energy Gun Small Laser Energy Cannon Ion Cannon Ballistic Gun Light Assault Rifle Ballistic Cannon Light Cannon Launcher Grenade Launcher Impact Weapon Flail Build | -11 -10 -10 -10 -9 -8 -8 ------- Run | Yrd Mat Min Exi Min Mat Sto Slots Evolved 4 | . . . . . 4 . Power . | . . . . . . . Propulsion . | . . . . . . . Utility 4 | . . . . . 4 . Weapon . | . . . . . . . Parts Attached 27 | 7 5 . . . 8 7 Power 3 | 1 1 . . . . 1 Engine 3 | 1 1 . . . . 1 Core . | . . . . . . . Reactor . | . . . . . . . Propulsion 6 | 2 2 . . . . 2 Treads 3 | 2 . . . . . 1 Leg . | . . . . . . . Wheel 3 | . 2 . . . . 1 Hover . | . . . . . . . Flight . | . . . . . . . Utility 9 | 2 1 . . . 6 . Device 2 | 1 . . . . 1 . Storage 4 | 1 1 . . . 2 . Processor 1 | . . . . . 1 . Hackware . | . . . . . . . Protection 2 | . . . . . 2 . Artifact . | . . . . . . . Weapon 9 | 2 1 . . . 2 4 Energy Gun 3 | . 1 . . . . 2 Energy Cannon 1 | . . . . . 1 . Ballistic Gun 2 | 2 . . . . . . Ballistic Cannon 1 | . . . . . 1 . Launcher 1 | . . . . . . 1 Special Weapon . | . . . . . . . Impact Weapon 1 | . . . . . . 1 Slashing Weapon . | . . . . . . . Piercing Weapon . | . . . . . . . Special Melee Weapon . | . . . . . . . Unidentified Prototypes 1 | . . . . . . 1 Parts Lost 19 | . 2 . . . . 17 Power 3 | . 1 . . . . 2 Propulsion 5 | . . . . . . 5 Utility 7 | . . . . . . 7 Weapon 4 | . 1 . . . . 3 Highest Loss Streak 7 | . 2 . . . . 7 To Critical Strikes . | . . . . . . . Average Backups 6 | 3 6 7 8 11 7 3 Power . | . . . . . . . Propulsion 1 | 1 2 2 2 2 2 1 Utility 2 | . 2 3 3 5 2 . Weapon 2 | . 1 2 3 4 3 2 Tool/Special . | . . . . . . . Unused Backups 4 | . 1 . . . . 3 Power 1 | . 1 . . . . . Propulsion 1 | . . . . . . 1 Utility . | . . . . . . . Weapon 2 | . . . . . . 2 Tool/Special . | . . . . . . . Average Slot Usage (%) 82 | . 99 100 100 100 88 48 Engine 10 | . 13 14 14 14 9 3 Treads 7 | . 17 . . . . 6 Wheel 13 | . 10 28 28 28 18 4 Device 10 | . 14 14 14 14 15 2 Storage 13 | . 14 14 14 14 11 13 Processor 1 | . . . . . 6 1 Protection 1 | . . . . . 9 2 Energy Gun 7 | . 5 14 14 14 2 4 Ballistic Gun 11 | . 21 14 14 14 4 . Ballistic Cannon 1 | . . . . . 7 2 Peak Build Rating 20 | 7 8 8 12 12 20 20 Average Rating 9 | 4 7 7 9 12 17 12 On Entrance 9 | . 7 7 8 12 12 20 Naked Turns . | . . . . . . . Heaviest Build 448 | 11 48 48 48 48 448 442 Greatest Support 40 | 40 40 32 32 32 32 40 Greatest Overweight (x) 147 | . 1 1 1 1 13 147 Average Overweight (x) 1 | . . 1 1 1 3 6 Largest Inventory Capacity 35 | 8 20 20 20 20 35 35 Average Capacity 18 | 7 12 20 20 20 29 24 Most Carried 16 | 5 8 8 16 16 15 12 Average Carried 8 | 3 7 7 11 16 11 7 Final Capacity 20 | 8 20 20 20 20 20 20 Final Carried 16 | 4 7 8 16 16 12 5 Class Distribution -------------------- 89% | Mutant 10% | Hauler-Mutant Dominant Class ---------------- Mutant | -10/Materials Mutant | -10/Mines Mutant | -10/Exiles Mutant | -9/Mines Mutant | -8/Materials Mutant | -8/Storage Resources | -11 -10 -10 -10 -9 -8 -8 ----------- Run | Yrd Mat Min Exi Min Mat Sto Matter Collected 664 | 272 66 52 . . . 274 Remotely . | . . . . . . . Salvage Created 1077 | 91 230 . . . . 756 Parts 54 | 3 18 . . . . 33 Haulers Intercepted 1 | . . . . . . 1 Recyclers Shooed 1 | . . . . . . 1 Parts Field Recycled . | . . . . . . . Retrieved Matter . | . . . . . . . Parts Self-Destructed . | . . . . . . . Prevented . | . . . . . . . Kills | -11 -10 -10 -10 -9 -8 -8 ------- Run | Yrd Mat Min Exi Min Mat Sto Combat Hostiles Destroyed 28 | . 10 . . . . 18 Melee 3 | . . . . . . 3 Guns 13 | . 10 . . . . 3 Cannons 5 | . . . . . . 5 AOE 5 | . . . . . . 5 Classes Destroyed 10 | 2 2 . . . . 6 Worker 1 | . . . . . . 1 Tunneler 1 | 1 . . . . . . Hauler 1 | . . . . . . 1 Recycler 2 | 1 . . . . . 1 Swarmer 9 | . 6 . . . . 3 Grunt 15 | . 4 . . . . 11 Brawler 1 | . . . . . . 1 Duelist 1 | . . . . . . 1 Sentry 1 | . . . . . . 1 Hunter 1 | . . . . . . 1 Best Kill Streak 7 | 2 4 . . . . 7 Combat Bots Only 6 | . 4 . . . . 6 Max Kills in Single Turn 4 | 1 2 . . . . 4 Gunslinging 1 | . 1 . . . . . Exploded 3 | . . . . . . 3 Melee 1 | . . . . . . 1 Uniques/NPCs Destroyed . | . . . . . . . Combat | -11 -10 -10 -10 -9 -8 -8 -------- Run | Yrd Mat Min Exi Min Mat Sto Hostile Shots Fired 228 | . 50 . . . . 178 Missed 43 | . 13 . . . . 30 Hits 185 | . 37 . . . . 148 Melee 21 | . . . . . . 21 Projectile 164 | . 37 . . . . 127 Critical Strikes 10 | . 1 . . . . 9 Actively Blocked 1 | . . . . . . 1 Damage Taken 3140 | . 400 . . . . 2740 Core 620 | . 66 . . . . 554 Absorbed by Shields . | . . . . . . . Redirected to Shielding 53 | . . . . . . 53 Core Remaining (%) 86 | 100 . . . 73 . . Volleys Fired 81 | 6 34 . . . . 41 Largest 2 | 2 2 . . . . 2 Hottest 122 | 40 60 . . . . 122 Shots Fired 153 | 12 67 . . . . 74 Gun 104 | 12 67 . . . . 25 Cannon 40 | . . . . . . 40 Launcher 9 | . . . . . . 9 Special . | . . . . . . . Kinetic 96 | 12 63 . . . . 21 Thermal 48 | . 4 . . . . 44 Explosive 9 | . . . . . . 9 Electromagnetic . | . . . . . . . Robot Hit Streak 16 | 4 7 . . . . 16 Robot Miss Streak 4 | 1 4 . . . . 2 Penetration Max . | . . . . . . . Secondary Targets 3 | . 3 . . . . . Max Gunslinging Chain 1 | . 1 . . . . . Shots Hit Robots 116 | 7 35 . . . . 74 Core Hits 62 | 4 18 . . . . 40 Critical Kills 2 | . 1 . . . . 1 Critical Parts Destroyed 2 | . . . . . . 2 Critical Strikes 6 | . 1 . . . . 5 Burn 2 | . . . . . . 2 Destroy 1 | . 1 . . . . . Smash 3 | . . . . . . 3 Melee Attacks 38 | . . . . . . 38 Impact 38 | . . . . . . 38 Slashing . | . . . . . . . Piercing . | . . . . . . . Sneak Attacks 1 | . . . . . . 1 Combat Hostiles . | . . . . . . . Follow-up Attacks . | . . . . . . . Damage Inflicted 2599 | 52 317 . . . . 2230 Guns 712 | 52 317 . . . . 343 Cannons 622 | . . . . . . 622 Explosions 558 | . . . . . . 558 Melee 707 | . . . . . . 707 Ramming . | . . . . . . . Kinetic 614 | 52 306 . . . . 256 Thermal 720 | . 11 . . . . 709 Explosive 558 | . . . . . . 558 Electromagnetic . | . . . . . . . Impact 707 | . . . . . . 707 Slashing . | . . . . . . . Piercing . | . . . . . . . Highest Corruption 10 | . 2 2 2 2 . 10 Average Corruption 5 | . 2 2 2 2 . 9 Corruption Purged . | . . . . . . . Corruption Blocked . | . . . . . . . Effects 24 | . 2 1 3 3 . 15 Message Errors 5 | . . . 1 2 . 2 Matter Fused 4 | . . 1 . 1 . 2 Heat Flow Errors 4 | . 1 . . . . 3 Energy Discharges 3 | . 1 . 1 . . 1 Data Loss (minor) 5 | . . . 1 . . 4 Misfires 3 | . . . . . . 3 Overload Shots . | . . . . . . . Overflow Damage 65 | . . . . . . 65 Projectiles . | . . . . . . . Explosions 22 | . . . . . . 22 Melee 43 | . . . . . . 43 Knockbacks 10 | . . . . . . 10 Impact 4 | . . . . . . 4 Kinetic 4 | . . . . . . 4 Secondary 2 | . . . . . . 2 Self-Inflicted Damage 110 | . . . . . . 110 Shots 5 | . . . . . . 5 Rammed . | . . . . . . . Targets Rammed . | . . . . . . . Kicked . | . . . . . . . Crushed . | . . . . . . . Highest Temperature 277 | . 180 . . . . 277 Average Temperature 90 | . 32 . . . . 106 Received Heat Transfer 1281 | . 201 . . . . 1080 Effects 4 | . . . . . . 4 Energy Bleed 1 | . . . . . . 1 Interference 3 | . . . . . . 3 Siege Activations . | . . . . . . . Martial Activations . | . . . . . . . Shielding Activations . | . . . . . . . Robots Disrupted . | . . . . . . . Combat Hostiles . | . . . . . . . Robots Corrupted 2 | . . . . . . 2 Combat Hostiles 2 | . . . . . . 2 Parts Fried 3 | . . . . . . 3 Impact Corruptions 5 | . . . . . . 5 Robots Melted . | . . . . . . . Combat Hostiles . | . . . . . . . Parts Melted 2 | . . . . . . 2 Heat Transferred 1505 | . 25 . . . . 1480 Parts Sabotaged . | . . . . . . . Parts Stolen . | . . . . . . . Parts Stripped . | . . . . . . . Power Chain Reactions . | . . . . . . . Alert | -11 -10 -10 -10 -9 -8 -8 ------- Run | Yrd Mat Min Exi Min Mat Sto Maximum Alert Level 1 | . . . . . . 1 Low Security (%) 89 | 100 100 100 . 100 100 72 Level 1 10 | . . . . . . 27 Level 2 . | . . . . . . . Level 3 . | . . . . . . . Level 4 . | . . . . . . . Level 5 . | . . . . . . . High Security . | . . . . . . . Max Security . | . . . . . . . Peak Influence 240 | 5 140 16 . . 9 240 Initial 16 | . . 16 . . . . Average 76 | . 68 9 . . . 138 Influence Increases 915 | 10 244 . . . 9 652 Destroy 0b10 Robot/C 560 | . 200 . . . . 360 Destroy 0b10 Robot/NC 25 | 10 . . . . . 15 Destroy Leader 132 | . 40 . . . . 92 Successful Hack 13 | . 4 . . . 9 . Disable Machine 15 | . . . . . . 15 Destroy Structure 50 | . . . . . . 50 Lose Combat Pursuer 120 | . . . . . . 120 Influence Decreases 685 | 10 202 42 . . 9 422 Entered New Map 26 | . . 26 . . . . Time Decay 469 | 10 182 16 . . 9 252 Lost Part 190 | . 20 . . . . 170 Squads Dispatched 9 | . 3 . . . . 6 Investigation 2 | . 1 . . . . 1 Extermination . | . . . . . . . Reinforcement 4 | . 2 . . . . 2 Assault . | . . . . . . . Garrison 3 | . . . . . . 3 Intercept . | . . . . . . . Searches Triggered . | . . . . . . . Construction Impeded 1 | . . . . . . 1 Haulers Reinforced . | . . . . . . . Active Scanning Responses . | . . . . . . . Cargo Convoy Interrupts . | . . . . . . . Stealth | -11 -10 -10 -10 -9 -8 -8 --------- Run | Yrd Mat Min Exi Min Mat Sto Distress Signals 3 | . 3 . . . . . Communications Jammed . | . . . . . . . Distress Signals . | . . . . . . . Times Spotted 44 | . 18 . . . . 26 Peak Tracking Total 7 | . 5 . . . . 7 Tactical Retreats 9 | . . . . . . 9 Traps | -11 -10 -10 -10 -9 -8 -8 ------- Run | Yrd Mat Min Exi Min Mat Sto Traps Triggered 3 | . 2 . . . . 1 Indirectly . | . . . . . . . Trap Hack Attempts . | . . . . . . . Triggered . | . . . . . . . Disarmed . | . . . . . . . Reprogrammed . | . . . . . . . Reused . | . . . . . . . Traps Extracted . | . . . . . . . Installed . | . . . . . . . Triggered . | . . . . . . . Machines | -11 -10 -10 -10 -9 -8 -8 ---------- Run | Yrd Mat Min Exi Min Mat Sto Machines Disabled 1 | . . . . . . 1 Max in Single Turn 1 | . . . . . . 1 Machines Repaired . | . . . . . . . Machines Dismantled . | . . . . . . . Machines Sabotaged . | . . . . . . . Overloaded Fab Kills . | . . . . . . . Hacking | -11 -10 -10 -10 -9 -8 -8 --------- Run | Yrd Mat Min Exi Min Mat Sto Machines Accessed 6 | . 4 . 1 . 1 . Terminals 4 | . 3 . . . 1 . Fabricators . | . . . . . . . Repair Stations . | . . . . . . . Recycling Units 1 | . 1 . . . . . Scanalyzers . | . . . . . . . Garrison Access . | . . . . . . . Total Hacks 18 | . 13 . 1 . 4 . Successful 9 | . 6 . 1 . 2 . Failed 9 | . 7 . . . 2 . Catastrophic 1 | . 1 . . . . . Database Lockouts . | . . . . . . . Manual 12 | . 9 . 1 . 2 . Terminals 13 | . 9 . . . 4 . Fabricators . | . . . . . . . Repair Stations . | . . . . . . . Recycling Units 4 | . 4 . . . . . Scanalyzers . | . . . . . . . Garrison Access . | . . . . . . . Terminal Hacks 4 | . 2 . 1 . 1 . Branch Access Points 1 | . 1 . . . . . Emergency Access Points 1 | . . . . . 1 . Zone Layout 1 | . 1 . . . . . Proto ID Catalog 1 | . . . 1 . . . Fabricator Hacks . | . . . . . . . Repair Station Hacks . | . . . . . . . Recycling Unit Hacks 1 | . 1 . . . . . Report Inventory 1 | . 1 . . . . . Scanalyzer . | . . . . . . . Garrison Access Hacks . | . . . . . . . Unauthorized Hacks 4 | . 3 . . . 1 . Terminals 4 | . 3 . . . 1 . Botnet 4 | . 3 . . . 1 . Fabricators . | . . . . . . . Repair Stations . | . . . . . . . Recycling Units . | . . . . . . . Scanalyzers . | . . . . . . . Garrison Access . | . . . . . . . Data Cores Recovered . | . . . . . . . Used . | . . . . . . . Hacking Detections 5 | . 4 . . . 1 . Full Trace Events 1 | . 1 . . . . . Feedback Events . | . . . . . . . Feedback Blocked . | . . . . . . . Robot Schematics Acquired . | . . . . . . . Robots Built . | . . . . . . . Authchips . | . . . . . . . Time . | . . . . . . . Total Robot Build Rating . | . . . . . . . Part Schematics Acquired . | . . . . . . . Parts Built . | . . . . . . . Authchips . | . . . . . . . Time . | . . . . . . . Total Part Build Rating . | . . . . . . . Parts Repaired . | . . . . . . . Time . | . . . . . . . Parts Recycled . | . . . . . . . Recycled Matter . | . . . . . . . Retrieved Matter . | . . . . . . . Retrieved Components . | . . . . . . . Parts Scanalyzed . | . . . . . . . Part Schematics Acquired . | . . . . . . . Parts Damaged . | . . . . . . . Bothacking | -11 -10 -10 -10 -9 -8 -8 ------------ Run | Yrd Mat Min Exi Min Mat Sto Used RIF Installer . | . . . . . . . Robots Hacked . | . . . . . . . Non-combat . | . . . . . . . Combat . | . . . . . . . Robot Hacks Applied . | . . . . . . . Relay Couplers Released . | . . . . . . . Fabnet Peak Effective % . | . . . . . . . Robots Rewired . | . . . . . . . Allies Hacked . | . . . . . . . Hacks Repelled . | . . . . . . . Allies | -11 -10 -10 -10 -9 -8 -8 -------- Run | Yrd Mat Min Exi Min Mat Sto Total Allies . | . . . . . . . Largest Group . | . . . . . . . Highest-Rated Group . | . . . . . . . Highest-Rated Ally . | . . . . . . . Total Orders . | . . . . . . . Ally Attacks . | . . . . . . . Total Damage . | . . . . . . . Kills . | . . . . . . . Allies Corrupted . | . . . . . . . Allies Melted . | . . . . . . . Intel | -11 -10 -10 -10 -9 -8 -8 ------- Run | Yrd Mat Min Exi Min Mat Sto Active Infowar (turns) 1247 | 10 570 43 307 129 99 89 Seismic 1198 | 10 570 43 307 129 99 40 ECM 170 | . . . . . 81 89 Robot Analysis Total . | . . . . . . . Derelict Logs Recovered 1 | . . 1 . . . . Drone Launches . | . . . . . . . Drone Recoveries . | . . . . . . . Exploration | -11 -10 -10 -10 -9 -8 -8 ------------- Run | Yrd Mat Min Exi Min Mat Sto Turns Passed 1861 | 143 570 43 307 129 99 570 Spaces Moved 841 | 83 289 37 265 47 53 67 Core 36 | 20 . . . . . 16 Treads 244 | 63 152 . . . . 29 Legs . | . . . . . . . Wheels 561 | . 137 37 265 47 53 22 Hover . | . . . . . . . Flight . | . . . . . . . Fastest Speed 50 | 50 115 115 115 115 115 115 Average Speed 151 | 133 138 115 115 115 156 419 Slowest Speed 7400 | 160 160 115 115 115 295 7400 Overloaded Moves . | . . . . . . . Propulsion Burnouts . | . . . . . . . Robots Hopped . | . . . . . . . Potential Cave-ins . | . . . . . . . Cave-ins Triggered . | . . . . . . . Exploration Rate (%) 26 | 4 71 13 69 9 5 13 Regions Visited 6 Branch Regions 4 Pre-discovered Areas . | . . . . . . . Known Exits Taken 1 | . 1 . . . . . Unknown Exits Taken 5 | 1 . 1 1 1 1 . Scrap Searched 1 | . . 1 . . . . Spaces Dug . | . . . . . . . Terrain Destroyed 45 | . . . . . . 45 Melee . | . . . . . . . Projectile 1 | . . . . . . 1 AOE 44 | . . . . . . 44 Terrain Rammed . | . . . . . . . Walls Destroyed . | . . . . . . . Machines Disabled . | . . . . . . . Actions | -11 -10 -10 -10 -9 -8 -8 --------- Run | Yrd Mat Min Exi Min Mat Sto Total 1234 | 106 404 37 267 122 70 228 Wait 206 | . 66 . . 76 . 64 Move 835 | 82 288 36 264 46 52 67 Hop . | . . . . . . . Pick Up 30 | 11 7 1 3 . 2 6 Fast Attach 1 | . 1 . . . . . Attach 27 | 7 1 . . . 9 10 Detach 3 | . . . . . 3 . Swap 6 | . 3 . . . 2 1 Drop 7 | . 4 . . . 2 1 Fire 81 | 6 34 . . . . 41 Melee 38 | . . . . . . 38 Ram . | . . . . . . . Kick . | . . . . . . . Crush . | . . . . . . . Escape Stasis . | . . . . . . . Rewire . | . . . . . . . Trap . | . . . . . . . Miscellaneous . | . . . . . . . Route ------- -11/Scrapyard -10/Materials (discovered 3 exits: [*Mat x2] / *Min) -10/Mines (discovered 2 exits: [*Mat] / *Exi) -10/Exiles -9/Mines -8/Materials -8/Storage History --------- Turn | Location | Event 7 | -11/Scrapyard | Discovered new exit (range 14) 144 | -11/Scrapyard | Entered Materials 307 | -10/Materials | Build established: Mutant 316 | -10/Materials | Identified exit to Mines 316 | -10/Materials | Discovered new exit (range 16) 520 | -10/Materials | Discovered new exit (range 15) 714 | -10/Materials | Entered Mines 718 | -10/Mines | Discovered new exit (range 10) 744 | -10/Mines | Learned Materials stockpile data 751 | -10/Mines | Deemed a non-threat by the Exiles lab entrance 752 | -10/Mines | Discovered new exit (range 5) 757 | -10/Mines | Entered Exiles 789 | -10/Exiles | Met 8R-AWN 806 | -10/Exiles | Met EX-HEX 839 | -10/Exiles | Met EX-BIN 853 | -10/Exiles | Aligned with FarCom system 854 | -10/Exiles | Given EX-Vault access code 881 | -10/Exiles | Opened EX-Vault 889 | -10/Exiles | Found XL Autogun Array 910 | -10/Exiles | Warned to stay clear of 0b10 Research branches 944 | -10/Exiles | Met EX-DEC 1055 | -10/Exiles | Discovered new exit (range 10) 1064 | -10/Exiles | Left Exiles lab with XL Autogun Array 1064 | -10/Exiles | Entered Mines 1084 | -9/Mines | Met a Derelict bent on vengeance 1086 | -9/Mines | Discovered new exit (range 13) 1193 | -9/Mines | Entered Materials 1193 | -8/Materials | Evolved 4 slots: Utility x4 1214 | -8/Materials | Discovered new exit (range 15) 1292 | -8/Materials | Entered Storage 1330 | -8/Storage | Garrison activated, responded to threat 1403 | -8/Storage | System corruption reached 10% 1451 | -8/Storage | Lost 7 parts (1p2n4u) 1544 | -8/Storage | Core integrity fell below 50% 1571 | -8/Storage | Core integrity fell below 20% 1607 | -8/Storage | Lost 5 parts (1n2u2w) 1862 | -8/Storage | Destroyed by G-47 Trooper with Particle Gun Last Messages --------------- 01783_ System corrupted: Component data lost. 01811_ Acquired 39 matter. 01816_ System corrupted: FCS attempts to trigger Prc. Beam Rifle. 01816_ System corrupted: Prc. Beam Rifle misfires. 01816_ Acquired 39 matter. 01831_ Ion Engine destroyed. 01835_ G-50 Soldier destroyed. 01843_ Lgt. Treads destroyed. 01844_ G-47 Trooper suffers critical hit (Burn). 01845_ System corrupted: Component data lost. 01845_ G-47 Trooper overheating. 01851_ R-06 Scavenger collects Adv. Heat Sink. 01852_ Lgt. Treads destroyed. 01852_ G-47 Trooper destroyed. 01854_ R-06 Scavenger collects Lgt. Nuclear Core. 01857_ R-06 Scavenger collects Imp. Heat Sink. 01862_ Critical hit (Burn: +37). Map ----- +----------------------------------------------------+ | ?????????????????????????????? | | ?????????????????????????????? | | ?????????????????????????????? | | ?????????????????????????????? | | ?????????????????????????????? | | ?????????????????????????????? | | ?????????????????????????????? | | ?????????????????????????????? | | ?????????????????????????????? | | ?????????????????????????????? | | ?????????????????????????????? | | ?????????####????????????????? | | ????????# ?????????????????? | | ????????# ?????????? ??????? | | ????????# "???????? ???????? | | ????????# ????????"""???????? | | ???????## ??????# """???????? | | ???????# """""? # """ """ ??? | | ???????# "*][" # ?? | | ???????# # ???? | | ######## ##???+###???? | | # #########/#### ####? | | # # % ? | | # # " ?? | | # # %= | | # @# %## ## ## #???? | | # gg% ## #??+?##???? | | # %#r #? #?????????? | | # # #? == #?????????? | | # # #? == #?????????? | | # # #? = #?????????? | | # # #? #?????????? | | # #####? #?????????? | | #######?????? #?????????? | | ?????#???????"Y" ????????????? | | ?????????????????????????????? | | ?????????????????????????????? | | ?????????????????????????????? | | ?????????????????????????????? | | ?????????????????????????????? | | ?????????????????????????????? | | ?????????????????????????????? | | ?????????????????????????????? | | ?????????????????????????????? | | ?????????????????????????????? | | ?????????????????????????????? | | ?????????????????????????????? | | | | | | | +----------------------------------------------------+ Best States ------------- Heat Dissipation 31 Energy Generation 10 Energy Capacity 250 Matter Stores 300 Matter Capacity 300 Sight Range 16 Terrain Scan Density 10 ECM Strength 1 Armor Coverage 150 Weapon Shielding 33 Evasion (%) 50 Recoil Reduction 2 Salvage Targeting 1 Item Schematics ----------------- None Robot Schematics ------------------ None Fabricated ------------ Nothing Repaired ---------- Nothing Alien Tech Used ----------------- None Achievements -------------- None Challenges ------------ None Game ------ Seed FieldTeslaDirector Manual? 0 Play Time 00:15:59 Cumulative 61.1 hours Start 2025.07.27 @ 15:02:48 End 2025.07.27 @ 15:17:42 Sessions 1 Manual Loads 0 Difficulty Rogue Special Mode None Game No. 137 Rogue 137 Adventurer 0 Explorer 0 Win Type - Total 1 Types 1/0/0/0/0/0/0/0/0/0 Lore% 41 Gallery% 46 Achievement% 33 Wizard Run 0 Options --------- Layout 1 ASCII 0 Keyboard 0 Movement Mouse Keybinds 0 Fullscreen 1 Font 24/Smallcaps Map View 50x40 Zoom Use 0% Tactical HUD 1 Map Filters NONE Filters NONE Steam 1 RUN: 6885873f-a974-4cd6-a068-ad40e92be3a0